Cogmind - Beta 14 @@@ ROGUE MODE // 2024.08.26 @ 16:20:48 Player: MadBadger Result: Destroyed by G-34 Mercenary with Small Laser Performance ------------- Evolutions (0) 0 Regions Visited (1) 200 Robots Destroyed (7) 35 Value Destroyed (218) 218 Prototype IDs (0) 0 Alien Tech Used (0) 0 Bonus (0) 0 TOTAL SCORE: 453 Bonus ------- None Cogmind --------- Core Integrity 0/250 Matter 246/300 Energy 125/125 System Corruption 0% Temperature Hot (205) Movement Core (200) Ox3 Location -10/Materials Parts ------- > --- POWER (1) -------- Light Ion Engine > --- PROPULSION (2) --- (None) > --- UTILITY (2) ------ Small Storage Unit > --- WEAPON (2) ------- Assault Rifle > --- INVENTORY (8) ---- Wheel Wheel Signal Interpreter Medium Laser Medium Laser Peak State ------------ > --- POWER ------------ Ion Engine > --- PROPULSION ------- Light Treads Light Treads > --- UTILITY ---------- Small Storage Unit > --- WEAPON ----------- Particle Gun Light Assault Rifle > --- INVENTORY -------- Light Ion Engine Wheel Compact Wheel Light Assault Rifle [Rating: 7] Favorites ----------- Power Ion Engine Engine Ion Engine Propulsion Light Treads Treads Light Treads Utility Small Storage Unit Storage Small Storage Unit Weapon Assault Rifle Energy Gun EM Pulse Gun Energy Cannon Beam Cannon Ballistic Gun Assault Rifle Build | -11 -10 ------- Run | Yrd Mat Slots Evolved . | . . Power . | . . Propulsion . | . . Utility . | . . Weapon . | . . Parts Attached 13 | 6 7 Power 2 | 1 1 Engine 2 | 1 1 Core . | . . Reactor . | . . Propulsion 2 | 2 . Treads 2 | 2 . Leg . | . . Wheel . | . . Hover . | . . Flight . | . . Utility 1 | 1 . Device . | . . Storage 1 | 1 . Processor . | . . Hackware . | . . Protection . | . . Artifact . | . . Weapon 8 | 2 6 Energy Gun 4 | 1 3 Energy Cannon 1 | . 1 Ballistic Gun 3 | 1 2 Ballistic Cannon . | . . Launcher . | . . Special Weapon . | . . Impact Weapon . | . . Slashing Weapon . | . . Piercing Weapon . | . . Special Melee Weapon . | . . Unidentified Prototypes . | . . Parts Lost 6 | . 6 Power 1 | . 1 Propulsion 2 | . 2 Utility . | . . Weapon 3 | . 3 Highest Loss Streak 5 | . 5 To Critical Strikes . | . . Average Slot Usage (%) 81 | . 81 Engine 13 | . 13 Treads 26 | . 26 Storage 14 | . 14 Energy Gun 5 | . 5 Energy Cannon 7 | . 7 Ballistic Gun 13 | . 13 Peak Build Rating 7 | 6 7 Average Rating 5 | 5 5 On Entrance 3 | . 6 Naked Turns . | . . Heaviest Build 15 | 13 15 Greatest Support 40 | 40 40 Greatest Overweight (x) 2 | . 2 Average Overweight (x) . | . . Largest Inventory Capacity 8 | 8 8 Average Capacity 7 | 7 8 Most Carried 7 | 4 7 Average Carried 5 | 2 5 Final Capacity 8 | 8 8 Final Carried 5 | 4 5 Class Distribution -------------------- 100% | Mutant Dominant Class ---------------- Mutant | -10/Materials Resources | -11 -10 ----------- Run | Yrd Mat Matter Collected 324 | 155 169 Remotely . | . . Salvage Created 273 | . 273 Parts 19 | . 19 Haulers Intercepted . | . . Recyclers Shooed . | . . Parts Field Recycled . | . . Retrieved Matter . | . . Parts Self-Destructed . | . . Prevented . | . . Kills | -11 -10 ------- Run | Yrd Mat Combat Hostiles Destroyed 6 | . 6 Guns 5 | . 5 Cannons 1 | . 1 Classes Destroyed 2 | . 2 Worker 1 | . 1 Grunt 6 | . 6 Best Kill Streak 3 | . 3 Combat Bots Only 2 | . 2 Max Kills in Single Turn 1 | . 1 Gunslinging . | . . Exploded . | . . Melee . | . . Uniques/NPCs Destroyed . | . . Combat | -11 -10 -------- Run | Yrd Mat Hostile Shots Fired 98 | . 98 Missed 19 | . 19 Damage Taken 1053 | . 1053 Core 255 | . 255 Absorbed by Shields . | . . Core Remaining (%) 100 | 100 . Volleys Fired 46 | . 46 Largest 2 | . 2 Hottest 80 | . 80 Shots Fired 65 | . 65 Gun 53 | . 53 Cannon 12 | . 12 Launcher . | . . Special . | . . Kinetic 46 | . 46 Thermal 12 | . 12 Explosive . | . . Electromagnetic 7 | . 7 Robot Hit Streak 11 | . 11 Robot Miss Streak 4 | . 4 Penetration Max . | . . Secondary Targets . | . . Shots Hit Robots 51 | . 51 Core Hits 15 | . 15 Critical Kills . | . . Critical Parts Destroyed . | . . Critical Strikes . | . . Melee Attacks . | . . Impact . | . . Slashing . | . . Piercing . | . . Sneak Attacks . | . . Combat Hostiles . | . . Follow-up Attacks . | . . Damage Inflicted 578 | . 578 Guns 454 | . 454 Cannons 124 | . 124 Explosions . | . . Melee . | . . Ramming . | . . Kinetic 369 | . 369 Thermal 124 | . 124 Explosive . | . . Electromagnetic 85 | . 85 Impact . | . . Slashing . | . . Piercing . | . . Highest Corruption . | . . Average Corruption . | . . Corruption Purged . | . . Corruption Blocked . | . . Overload Shots . | . . Overflow Damage . | . . Projectiles . | . . Explosions . | . . Melee . | . . Knockbacks . | . . Impact . | . . Kinetic . | . . Secondary . | . . Self-Inflicted Damage . | . . Shots . | . . Rammed . | . . Targets Rammed . | . . Kicked . | . . Crushed . | . . Highest Temperature 333 | . 333 Average Temperature 108 | . 108 Received Heat Transfer 624 | . 624 Siege Activations . | . . Robots Corrupted . | . . Combat Hostiles . | . . Parts Fried . | . . Impact Corruptions . | . . Robots Melted . | . . Combat Hostiles . | . . Parts Melted . | . . Heat Transferred 259 | . 259 Parts Sabotaged . | . . Parts Stolen . | . . Parts Stripped . | . . Power Chain Reactions . | . . Alert | -11 -10 ------- Run | Yrd Mat Peak Influence 65 | . 65 Initial . | . . Average 28 | . 31 Maximum Alert Level . | . . Low Security (%) 100 | 100 100 Level 1 . | . . Level 2 . | . . Level 3 . | . . Level 4 . | . . Level 5 . | . . High Security . | . . Max Security . | . . Squads Dispatched 2 | . 2 Investigation 1 | . 1 Extermination . | . . Reinforcement 1 | . 1 Assault . | . . Garrison . | . . Intercept . | . . Searches Triggered . | . . Construction Impeded . | . . Haulers Reinforced . | . . Active Scanning Responses . | . . Cargo Convoy Interrupts . | . . Stealth | -11 -10 --------- Run | Yrd Mat Distress Signals . | . . Communications Jammed . | . . Distress Signals . | . . Times Spotted 9 | . 9 Peak Tracking Total 5 | . 5 Tactical Retreats . | . . Traps | -11 -10 ------- Run | Yrd Mat Traps Triggered 2 | . 2 Indirectly . | . . Trap Hack Attempts . | . . Triggered . | . . Disarmed . | . . Reprogrammed . | . . Reused . | . . Traps Extracted . | . . Installed . | . . Triggered . | . . Machines | -11 -10 ---------- Run | Yrd Mat Machines Disabled . | . . Max in Single Turn . | . . Machines Repaired . | . . Machines Dismantled . | . . Machines Sabotaged . | . . Overloaded Fab Kills . | . . Hacking | -11 -10 --------- Run | Yrd Mat Machines Accessed 1 | . 1 Terminals 1 | . 1 Fabricators . | . . Repair Stations . | . . Recycling Units . | . . Scanalyzers . | . . Garrison Access . | . . Total Hacks 3 | . 3 Successful 2 | . 2 Failed 1 | . 1 Catastrophic . | . . Database Lockouts . | . . Manual . | . . Terminals 3 | . 3 Fabricators . | . . Repair Stations . | . . Recycling Units . | . . Scanalyzers . | . . Garrison Access . | . . Terminal Hacks 2 | . 2 Branch Access Points 1 | . 1 Emergency Access Points 1 | . 1 Fabricator Hacks . | . . Repair Station Hacks . | . . Recycling Unit Hacks . | . . Scanalyzer . | . . Garrison Access Hacks . | . . Unauthorized Hacks . | . . Terminals . | . . Fabricators . | . . Repair Stations . | . . Recycling Units . | . . Scanalyzers . | . . Garrison Access . | . . Data Cores Recovered . | . . Used . | . . Hacking Detections . | . . Full Trace Events . | . . Feedback Events . | . . Feedback Blocked . | . . Robot Schematics Acquired . | . . Robots Built . | . . Authchips . | . . Time . | . . Total Robot Build Rating . | . . Part Schematics Acquired . | . . Parts Built . | . . Authchips . | . . Time . | . . Total Part Build Rating . | . . Parts Repaired . | . . Time . | . . Parts Recycled . | . . Recycled Matter . | . . Retrieved Matter . | . . Retrieved Components . | . . Parts Scanalyzed . | . . Part Schematics Acquired . | . . Parts Damaged . | . . Bothacking | -11 -10 ------------ Run | Yrd Mat Used RIF Installer . | . . Robots Hacked . | . . Non-combat . | . . Combat . | . . Robot Hacks Applied . | . . Relay Couplers Released . | . . Fabnet Peak Effective % . | . . Robots Rewired . | . . Allies Hacked . | . . Hacks Repelled . | . . Allies | -11 -10 -------- Run | Yrd Mat Total Allies . | . . Largest Group . | . . Highest-Rated Group . | . . Highest-Rated Ally . | . . Total Orders . | . . Ally Attacks . | . . Total Damage . | . . Kills . | . . Allies Corrupted . | . . Allies Melted . | . . Intel | -11 -10 ------- Run | Yrd Mat Robot Analysis Total . | . . Derelict Logs Recovered . | . . Drone Launches . | . . Drone Recoveries . | . . Exploration | -11 -10 ------------- Run | Yrd Mat Turns Passed 800 | 82 718 Spaces Moved 412 | 51 361 Core 12 | 10 2 Treads 400 | 41 359 Legs . | . . Wheels . | . . Hover . | . . Flight . | . . Fastest Speed 50 | 50 150 Average Speed 157 | 138 159 Slowest Speed 160 | 160 160 Overloaded Moves . | . . Propulsion Burnouts . | . . Robots Hopped . | . . Cave-ins Triggered . | . . Exploration Rate (%) 19 | 4 35 Regions Visited 1 Branch Regions . Pre-discovered Areas . | . . Known Exits Taken . | . . Unknown Exits Taken 1 | 1 . Scrap Searched . | . . Spaces Dug . | . . Terrain Destroyed . | . . Melee . | . . Projectile . | . . AOE . | . . Terrain Rammed . | . . Walls Destroyed . | . . Machines Disabled . | . . Actions | -11 -10 --------- Run | Yrd Mat Total 503 | 60 443 Wait 16 | . 16 Move 411 | 50 361 Hop . | . . Pick Up 11 | 4 7 Fast Attach 8 | 6 2 Attach 2 | . 2 Detach 1 | . 1 Swap 3 | . 3 Drop 5 | . 5 Fire 46 | . 46 Melee . | . . Ram . | . . Kick . | . . Crush . | . . Escape Stasis . | . . Rewire . | . . Trap . | . . Miscellaneous . | . . Route ------- -11/Scrapyard -10/Materials (discovered 1 exit: *Min) History --------- Turn | Location | Event 9 | -11/Scrapyard | Discovered new exit (range 15) 83 | -11/Scrapyard | Entered Materials 304 | -10/Materials | Build established: Mutant 556 | -10/Materials | Identified exit to Mines 728 | -10/Materials | Core integrity fell below 50% 788 | -10/Materials | Core integrity fell below 20% 801 | -10/Materials | Destroyed by G-34 Mercenary with Small Laser Last Messages --------------- 00598_ Dropped Lgt. Assault Rifle. 00599_ Acquired Assault Rifle. 00640_ K-01 Serf collects debris. 00708_ Triggered Alarm Trap. 00708_ An alarm sounds. 00708_ ALERT: Alarm triggered, dispatching investigation squad. 00736_ ALERT: Hostiles spotted, dispatching reinforcements to Terminal M003. 00751_ Acquired 19 matter. 00752_ U-05 Engineer builds a Door. 00755_ G-34 Mercenary destroyed. 00763_ U-05 Engineer builds a Door. 00767_ Ion Engine destroyed. 00771_ Critical hit (Burn: +37). 00773_ Lgt. Treads destroyed. 00776_ G-34 Mercenary destroyed. 00785_ Critical hit (Burn: +37). 00787_ Assault Rifle destroyed. 00793_ Beam Cannon destroyed. 00798_ Critical hit (Burn: +37). Map ----- +----------------------------------------------------+ | | | | | | | | | | | | | | | ?????????????????????????????????????????????????? | | ???????????????????????????????????????????????### | | ?????????????????????????????????????########### | | ?????????????????????????????????????# | | ??????????????????????????????? | | ??????????????????????????#####?################ | | ??????????????????????????# #?# ######## | | ??????????????????????????# #?# """ # # | | ??????????????????????????# #?# """ # + | | ??????????????????????????# #?# """ # # | | ??????????????????????????# #?# [[ # # | | ??????????????????????????# #?# [ """ + # | | ??????????????????????????# #?# """ # # | | ???????????????????######## #?# """ # # | | ???????????????????# # #?# #+###### | | ???????????????????# [#! #######+#### ##???# | | ???????????????????# g%+= #???# | | ???????????????????# g#% [= #???# | | ???????????????????# @# =%* #???# | | ???????????#???????# # #######+### ##### | | ???????????# ??????######## #??# # ## | | ??????????## ????????????# #??# # | | ??????????# ############ #??# """ + T | | ??????????# #??# """ # | | ??????????# #??# """ !###### | | ??????????# ###+######## #??# #????## | | ??????????# #??# ## #########/####### | | ???????????????# ## | | ???????????????# ## | | ???????????????# ## | | ???????????????# ## ########/#####+###+# | | ???????????????# ## #?????? ???# # | | ???????????????# ## #?????? ???# !!|# | | ???????????????# ## #????? ???# !!|# | | ???????????????#######/#### #????? ???# !||# | | ?????????????????????? #??# #????? !!???# # | | ?????????????????????? #??# #???? !!???####### | | ???????????????????????#??# #???? !! ????????? | | ??????????????????????????? ????? ????????? | | ??????????????????????????????????# = ????????? | | ???????????????????????????????????######????????? | | ?????????????????????????????????????????????????? | | ?????????????????????????????????????????????????? | +----------------------------------------------------+ Best States ------------- Heat Dissipation 25 Energy Generation 10 Energy Capacity 250 Matter Stores 300 Matter Capacity 300 Sight Range 16 Terrain Scan Density 10 Evasion (%) 50 Recoil Reduction 2 Item Schematics ----------------- None Robot Schematics ------------------ None Fabricated ------------ Nothing Alien Tech Used ----------------- None Achievements -------------- None Challenges ------------ None Game ------ Seed ProtonPointyMicroactuators Manual? 0 Play Time 00:09:20 Cumulative 7.6 hours Start 2024.08.26 @ 16:06:04 End 2024.08.26 @ 16:20:48 Sessions 1 Manual Loads 0 Difficulty Rogue Special Mode None Game No. 10 Rogue 10 Adventurer 0 Explorer 0 Win Type - Total 0 Types 0/0/0/0/0/0/0/0/0 Lore% 1 Gallery% 9 Achievement% 10 Wizard Run 0 Options --------- Layout 0 ASCII 0 Keyboard 1 Movement Numpad Keybinds 0 Fullscreen 1 Font 24/Smallcaps Map View 76x50 Zoom Use 0% Tactical HUD 1 Map Filters NONE Filters NONE Steam 1 RUN: a489ad03-eae7-457b-bb8f-bf21eb8a5a96